fUSD/lending_fUSD_20250916
["ID","MTS","AMOUNT","RATE_DAILY","PERIOD"]
[385719099,1757989839126,-545.0,0.00027137,2]
[385719101,1757989839135,-8467.64170563,0.00027176,2]
[385719103,1757989839144,-190.89,0.00027196,2]
[385719105,1757989839154,-500.0,0.00027203,2]
[385719107,1757989839164,-500.0,0.00027203,2]
[385719133,1757989839364,-200.0,0.0002726,2]
[385719136,1757989839414,-151.48000638,0.00027264,2]
[385719138,1757989839424,-153.81772278,0.00027264,2]
[385719140,1757989839433,-500.0,0.00027264,2]
[385719142,1757989839443,-500.0,0.00027264,2]
[385719144,1757989839452,-150.0,0.00027264,2]
[385719146,1757989839461,-500.0,0.00027264,2]
[385719148,1757989839471,-8467.64170563,0.00027264,2]
[385719150,1757989839479,-7809.74489397,0.00027264,2]
[385719152,1757989839489,-150.0,0.00027274,2]
[385719154,1757989839499,-150.0,0.00027274,2]
[385719156,1757989839508,-150.0,0.00027274,2]
[385719158,1757989839517,-500.0,0.00027274,2]
[385719160,1757989839526,-500.0,0.00027274,2]
[385719162,1757989839535,-500.0,0.00027274,2]
[385719164,1757989839544,-500.0,0.00027274,2]
[385719166,1757989839554,-150.0,0.00027274,2]
[385719168,1757989839563,-500.0,0.00027274,2]
[385719170,1757989839572,-155.54571628,0.00027274,2]
[385719172,1757989839582,-152.49040934,0.00027274,2]
[385719174,1757989839591,-150.0,0.00027274,2]
[385719176,1757989839600,-150.0,0.00027274,2]
[385719178,1757989839609,-150.0,0.00027274,2]
[385719180,1757989839618,-500.0,0.00027274,2]
[385719182,1757989839627,-551.99437865,0.00027274,2]
[385719184,1757989839635,-602.34666889,0.00027274,2]
[385719186,1757989839645,-150.0,0.00027274,2]
[385719188,1757989839654,-288.82556865,0.00027274,2]
[385719190,1757989839663,-500.0,0.00027274,2]
[385719192,1757989839672,-500.0,0.00027274,2]
[385719194,1757989839681,-1094.0,0.00027274,2]
[385719196,1757989839691,-500.0,0.00027274,2]
[385719198,1757989839701,-500.0,0.00027274,2]
[385719200,1757989839710,-500.0,0.00027274,2]
[385719202,1757989839719,-500.0,0.00027274,2]
[385719204,1757989839728,-500.0,0.00027274,2]
[385719206,1757989839737,-500.0,0.00027274,2]
[385719208,1757989839747,-150.0,0.00027274,2]
[385719210,1757989839756,-607.33378466,0.00027274,2]
[385719212,1757989839766,-500.0,0.00027274,2]
[385719214,1757989839787,-500.0,0.00027274,2]
[385719215,1757989839802,-500.0,0.00027274,2]
[385719217,1757989839818,-500.0,0.00027274,2]
[385719218,1757989839850,-500.0,0.00027274,2]
[385719220,1757989839867,-629.34743453,0.00027274,2]
[385719221,1757989839878,-150.0,0.00027274,2]
[385719223,1757989839893,-151.0,0.00027274,7]
[385719225,1757989839903,-151.0,0.00027274,7]
[385719227,1757989839913,-151.0,0.00027274,7]
[385719230,1757989839922,-151.0,0.00027274,7]
[385719233,1757989839933,-151.0,0.00027274,7]
[385719235,1757989839942,-2000.0,0.00027299,2]
[385719238,1757989839952,-151.0,0.00027397,7]
[385719241,1757989839962,-152.294737,0.00027397,7]
[385719243,1757989839971,-151.0,0.00027397,7]
[385719245,1757989839979,-151.0,0.00027397,7]
[385719247,1757989839988,-151.0,0.00027397,7]
[385719249,1757989839998,-151.0,0.00027397,7]
[385719251,1757989840007,-164.72,0.00027425,30]
[385719253,1757989840017,-500.0,0.00027477,2]
[385719255,1757989840026,-583.62716958,0.00027477,2]
[385719257,1757989840035,-8467.64170563,0.000275,2]
[385719259,1757989840044,-7809.74489397,0.000275,2]
[385719261,1757989840054,-500.0,0.00027538,2]
[385719263,1757989840063,-500.0,0.00027538,2]
[385719265,1757989840072,-220.18513271,0.00027538,2]
[385719267,1757989840081,-500.0,0.00027538,2]
[385719269,1757989840091,-8467.64170563,0.00027538,2]
[385719271,1757989840100,-7809.74489397,0.00027538,2]
[385719273,1757989840110,-150.0,0.00027548,2]
[385719275,1757989840119,-150.0,0.00027548,2]
[385719277,1757989840128,-151.71762275,0.00027548,2]
[385719279,1757989840138,-500.0,0.00027548,2]
[385719281,1757989840147,-500.0,0.00027548,2]
[385719283,1757989840157,-553.44252499,0.00027548,2]
[385719285,1757989840166,-500.0,0.00027548,2]
[385719287,1757989840175,-150.0,0.00027548,2]
[385719288,1757989840184,-500.0,0.00027548,2]
[385719290,1757989840193,-150.0,0.00027548,2]
[385719292,1757989840203,-150.0,0.00027548,2]
[385719294,1757989840213,-205.04031359,0.00027548,2]
[385719296,1757989840223,-500.0,0.00027548,2]
[385719298,1757989840233,-150.0,0.00027548,2]
[385719300,1757989840243,-205.24203672,0.00027548,2]
[385719302,1757989840253,-500.0,0.00027548,2]
[385719304,1757989840262,-1094.0,0.00027548,2]
[385719306,1757989840271,-500.0,0.00027548,2]
[385719308,1757989840280,-500.0,0.00027548,2]
[385719310,1757989840289,-305.70799886,0.00027548,2]
[385719312,1757989840299,-500.0,0.00027548,2]
[385719314,1757989840310,-500.0,0.00027548,2]
[385719316,1757989840319,-500.0,0.00027548,2]
[385719318,1757989840328,-150.0,0.00027548,2]
[385719321,1757989840338,-500.0,0.00027548,2]
[385719323,1757989840348,-500.0,0.00027548,2]
[385719324,1757989840357,-500.0,0.00027548,2]
[385719326,1757989840366,-500.0,0.00027548,2]
[385719328,1757989840375,-500.0,0.00027548,2]
[385719330,1757989840384,-150.0,0.00027548,2]
[385719332,1757989840393,-151.0,0.00027548,7]
[385719334,1757989840403,-151.0,0.00027548,7]
[385719336,1757989840412,-151.0,0.00027548,7]
[385719338,1757989840421,-151.0,0.00027548,7]
[385719340,1757989840430,-165.0,0.00027671,14]
[385719341,1757989840439,-500.0,0.00027751,2]
[385719342,1757989840447,-500.0,0.00027812,2]
[385719343,1757989840456,-500.0,0.00027812,2]
[385719344,1757989840465,-500.0,0.00027812,2]
[385719345,1757989840474,-8467.64170563,0.00027812,2]
[385719346,1757989840482,-7809.74489397,0.00027812,2]
[385719347,1757989840492,-150.0,0.00027822,2]
[385719349,1757989840502,-150.0,0.00027822,2]
[385719351,1757989840512,-500.0,0.00027822,2]
[385719353,1757989840522,-155.1626616,0.00027822,2]
[385719355,1757989840531,-500.0,0.00027822,2]
[385719357,1757989840540,-151.0682478,0.00027822,2]
[385719359,1757989840550,-559.61462326,0.00027822,2]
[385719361,1757989840559,-150.0,0.00027822,2]
[385719363,1757989840568,-150.0,0.00027822,2]
[385719365,1757989840577,-500.0,0.00027822,2]
[385719367,1757989840587,-150.0,0.00027822,2]
[385719369,1757989840596,-500.0,0.00027822,2]
[385719371,1757989840605,-1094.0,0.00027822,2]
[385719373,1757989840614,-500.0,0.00027822,2]
[385719375,1757989840623,-500.0,0.00027822,2]
[385719377,1757989840632,-500.0,0.00027822,2]
[385719379,1757989840641,-561.74327287,0.00027822,2]
[385719381,1757989840651,-500.0,0.00027822,2]
[385719383,1757989840660,-150.0,0.00027822,2]
[385719385,1757989840669,-500.0,0.00027822,2]
[385719387,1757989840678,-500.0,0.00027822,2]
[385719389,1757989840687,-500.0,0.00027822,2]
[385719392,1757989840697,-197.85707526,0.00027822,2]
[385719394,1757989840706,-150.0,0.00027822,2]
[385719396,1757989840715,-4409.79333942,0.0002784,2]
[385719399,1757989840726,-151.0,0.00027857,7]
[385719402,1757989840740,-151.0,0.00027857,7]
[385719404,1757989840749,-151.0,0.00027857,7]
[385719406,1757989840759,-363.786409,0.00027857,7]
[385719408,1757989840768,-363.786409,0.00027857,7]
[385719410,1757989840778,-363.786409,0.00027857,7]
[385719412,1757989840788,-388.104289,0.00027857,7]
[385719414,1757989840797,-363.786409,0.00027857,7]
[385719416,1757989840808,-388.104289,0.00027857,7]
[385719418,1757989840817,-388.104289,0.00027857,7]
[385719420,1757989840827,-388.104289,0.00027857,7]
[385719422,1757989840836,-160.4,0.00028,30]
[385719424,1757989840845,-500.0,0.00028025,2]
[385719426,1757989840855,-4463.96621315,0.00028032,2]
[385719428,1757989840866,-279.59,0.00028039,2]
[385719430,1757989840875,-8467.64170563,0.00028076,2]
[385719433,1757989840886,-7809.74489397,0.00028076,2]
[385719435,1757989840898,-500.0,0.00028086,2]
[385719436,1757989840908,-284.65825407,0.00028086,2]
[385719438,1757989840917,-500.0,0.00028086,2]
[385719441,1757989840927,-7809.74489397,0.00028086,2]
[385719443,1757989840936,-175.68346684,0.00028096,2]
[385719445,1757989840946,-150.0,0.00028096,2]
[385719447,1757989840955,-500.0,0.00028096,2]
[385719449,1757989840975,-500.0,0.00028096,2]
[385719451,1757989840984,-150.0,0.00028096,2]
[385719454,1757989840993,-150.0,0.00028096,2]
[385719456,1757989841003,-500.0,0.00028096,2]
[385719458,1757989841011,-150.0,0.00028096,2]
[385719460,1757989841020,-406.52307703,0.00028096,2]
[385719462,1757989841030,-1094.0,0.00028096,2]
[385719464,1757989841039,-500.0,0.00028096,2]
[385719466,1757989841048,-398.93038835,0.00028096,2]
[385719468,1757989841057,-500.0,0.00028096,2]
[385719469,1757989841067,-573.5698272,0.00028096,2]
[385719471,1757989841076,-150.99948376,0.00028096,2]
[385719473,1757989841085,-500.0,0.00028096,2]
[385719475,1757989841094,-500.0,0.00028096,2]
[385719477,1757989841103,-500.0,0.00028096,2]
[385719479,1757989841113,-372.10064723,0.00028096,2]
[385719481,1757989841122,-152.55488774,0.00028096,2]
[385719484,1757989841132,-8467.64170563,0.0002815,2]
[385719486,1757989841141,-156.034288,0.0002816,7]
[385719488,1757989841151,-155.871572,0.0002816,7]
[385719490,1757989841160,-151.0,0.0002816,7]
[385719492,1757989841169,-363.786409,0.0002816,7]
[385719494,1757989841179,-363.786409,0.0002816,7]
[385719496,1757989841187,-363.786409,0.0002816,7]
[385719498,1757989841197,-388.104289,0.0002816,7]
[385719500,1757989841210,-363.786409,0.0002816,7]
[385719502,1757989841219,-388.104289,0.0002816,7]
[385719504,1757989841228,-388.104289,0.0002816,7]
[385719506,1757989841238,-388.104289,0.0002816,7]
[385719508,1757989841250,-500.0,0.00028299,2]
[385719510,1757989841259,-500.0,0.0002836,2]
[385719512,1757989841268,-183.61462946,0.0002836,2]
[385719514,1757989841278,-500.0,0.0002836,2]
[385719516,1757989841287,-206.64298236,0.0002837,2]
[385719518,1757989841296,-500.0,0.0002837,2]
[385719520,1757989841304,-500.0,0.0002837,2]
[385719522,1757989841314,-200.76501172,0.0002837,2]
[385719524,1757989841323,-500.0,0.0002837,2]
[385719526,1757989841332,-151.78580943,0.0002837,2]
[385719528,1757989841341,-1094.0,0.0002837,2]
[385719530,1757989841351,-500.0,0.0002837,2]
[385719532,1757989841360,-504.56335663,0.0002837,2]
[385719534,1757989841369,-500.0,0.0002837,2]
[385719536,1757989841379,-160.77784351,0.0002837,2]
[385719538,1757989841388,-500.0,0.0002837,2]
[385719540,1757989841397,-258.29321732,0.00028573,2]
[385719542,1757989841406,-7809.74489397,0.00028624,2]
[385719544,1757989841415,-261.8019994,0.00028634,2]
[385719546,1757989841424,-8467.64170563,0.00028634,2]
[385719548,1757989841433,-194.9751514,0.00028644,2]
[385719550,1757989841442,-500.0,0.00028644,2]
[385719552,1757989841451,-500.0,0.00028644,2]
[385719554,1757989841461,-1094.0,0.00028644,2]
[385719556,1757989841470,-500.0,0.00028644,2]
[385719558,1757989841479,-500.0,0.00028644,2]
[385719560,1757989841488,-500.0,0.00028644,2]
[385719562,1757989841497,-165.0,0.00028767,14]
[385719564,1757989841507,-4409.79333942,0.000288,2]
[385719566,1757989841516,-502.6846923,0.00028918,2]
[385719568,1757989841525,-635.74646022,0.00028918,2]
[385719570,1757989841534,-1094.0,0.00028918,2]
[385719572,1757989841543,-500.0,0.00028918,2]
[385719574,1757989841552,-304.60551717,0.00028918,2]
[385719576,1757989841561,-500.0,0.00028918,2]
[385719578,1757989841570,-7809.74489397,0.00028957,2]
[385719580,1757989841579,-4463.96621315,0.00028967,2]
[385719582,1757989841589,-920.25008,0.0002899,2]
[385719583,1757989841598,-8467.64170563,0.00029001,2]
[385719584,1757989841607,-2893.77720462,0.00029002,2]
[385719585,1757989841616,-150.0,0.0002901,2]
[385719586,1757989841626,-7809.74489397,0.00029011,2]
[385719587,1757989841635,-279.59,0.00029017,2]
[385719588,1757989841644,-151.0,0.00029021,7]
[385719589,1757989841655,-363.786409,0.00029021,7]
[385719590,1757989841664,-363.786409,0.00029021,7]
[385719591,1757989841673,-363.786409,0.00029021,7]
[385719592,1757989841682,-388.104289,0.00029021,7]
[385719593,1757989841691,-363.786406,0.00029021,7]
[385719594,1757989841700,-388.104289,0.00029021,7]
[385719595,1757989841710,-388.104289,0.00029021,7]
[385719596,1757989841719,-388.104298,0.00029021,7]
[385719597,1757989841728,-1094.0,0.00029192,2]
[385719598,1757989841738,-358.62118551,0.00029192,2]
[385719599,1757989841747,-500.0,0.00029192,2]
[385719600,1757989841757,-1701.28067309,0.000292,2]
[385719602,1757989841766,-280.217887,0.000292,7]
[385719604,1757989841777,-839.0,0.00029322,7]
[385719606,1757989841786,-8467.64170563,0.00029463,2]
[385719607,1757989841795,-1094.0,0.00029466,2]
[385719610,1757989841805,-500.0,0.00029466,2]
[385719612,1757989841815,-500.0,0.00029473,5]
[385719614,1757989841824,-566.31084396,0.00029473,5]
[385719616,1757989841833,-1701.28067309,0.000295,2]
[385719618,1757989841843,-7809.74489397,0.00029549,2]
[385719620,1757989841852,-262.0,0.00029569,2]
[385719622,1757989841862,-180.13292017,0.00029613,4]
[385719624,1757989841871,-839.0,0.00029641,2]
[385719626,1757989841880,-603.04746891,0.0002973,2]
[385719628,1757989841893,-1094.0,0.0002974,2]
[385719630,1757989841902,-500.0,0.0002974,2]
[385719632,1757989841912,-4409.79333942,0.00029759,2]
[385719634,1757989841921,-839.0,0.00029778,2]
[385719636,1757989841931,-8467.64170563,0.0002979,2]
[385719638,1757989841939,-1701.28067309,0.000298,2]
[385719640,1757989841949,-500.0,0.000298,30]
[385719642,1757989841959,-800.0,0.000298,10]
[385719644,1757989841969,-7809.74489397,0.00029859,2]
[385719646,1757989841978,-500.0,0.00029873,5]
[385719648,1757989841987,-501.64357176,0.00029873,5]
[385719650,1757989841996,-502.45988937,0.00029873,5]
[385719652,1757989842006,-236.77336979,0.00029873,5]
[385719654,1757989842014,-500.0,0.00029873,5]
[385719656,1757989842023,-500.0,0.00029873,5]
[385719658,1757989842033,-445.56813551,0.00029873,5]
[385719660,1757989842041,-500.0,0.00029873,5]
[385719661,1757989842051,-500.0,0.00029873,5]
[385719663,1757989842060,-505.53965532,0.00029873,5]
[385719664,1757989842071,-250.0,0.00029873,5]
[385719665,1757989842081,-16935.2834113,0.0002988,2]
[385719666,1757989842090,-7809.74489397,0.0002988,2]
[385719667,1757989842099,-7809.74489397,0.00029889,2]
[385719668,1757989842108,-8467.64170563,0.0002989,2]
[385719669,1757989842117,-15619.4897879,0.0002989,2]
[385719670,1757989842126,-840.0,0.00029896,2]
[385719671,1757989842136,-7903.51070411,0.000299,2]
[385719672,1757989842146,-30000.0,0.000299,3]
[385719673,1757989842155,-715.05041266,0.000299,2]
[385719674,1757989842164,-1600.0,0.000299,10]
[385719675,1757989842174,-4463.96621315,0.00029903,2]
[385719676,1757989842183,-190.89,0.00029916,2]
[385719677,1757989842192,-31238.9795759,0.0002996,2]
[385719678,1757989842202,-31238.9795759,0.0002997,2]
[385719679,1757989842211,-39048.7244698,0.0002997,2]
[385719680,1757989842220,-500.0,0.00029973,5]
[385719681,1757989842230,-450.89969467,0.00029973,2]
[385719682,1757989842239,-500.0,0.00029973,5]
[385719683,1757989842248,-500.0,0.00029973,5]
[385719684,1757989842257,-150.0,0.00029973,5]
[385719685,1757989842267,-55756.61130022,0.0002998,2]
[385719686,1757989842277,-46858.4693638,0.0002998,2]
[385719687,1757989842288,-421.27153807,0.00029989,2]
[385719688,1757989842299,-232.88873662,0.0002999,2]
[385719689,1757989842308,-203.62110206,0.0002999,2]
[385719690,1757989842317,-279.59,0.00029995,2]
[385719691,1757989842329,-1000.0,0.00029999,2]
[385719692,1757989842339,-174735.19921613,0.0003,5]
[385719693,1757989842348,-19510.83033836,0.0003,2]
[385719694,1757989842357,-1782.31134066,0.0003,2]
[385719695,1757989842366,-982.88544708,0.0003,2]
[385719696,1757989842375,-602.15964041,0.0003,2]
[385719697,1757989842384,-432.09244674,0.0003,2]
[385719698,1757989842393,-160.0,0.0003,7]
[385719699,1757989842402,-505.15452748,0.0003,2]
[385719700,1757989842411,-268.0,0.0003,14]
[385719701,1757989842420,-404.59210095,0.0003,2]
[385719702,1757989842429,-6947.4323448,0.0003,2]
[385719703,1757989842439,-4000.0,0.0003,4]
[385719704,1757989842448,-1094.0,0.00030014,2]
[385719705,1757989842458,-500.0,0.00030014,2]
[385719706,1757989842467,-1000.0,0.00030021,5]
[385719707,1757989842476,-166.25,0.00030038,2]
[385719708,1757989842486,-262.0,0.00030088,7]
[385719709,1757989842495,-1701.28067309,0.000301,2]
[385719710,1757989842504,-41384.16347182,0.0003013,2]
[385719711,1757989842513,-839.0,0.00030133,2]
[385719712,1757989842522,-350.31877094,0.00030136,30]
[385719713,1757989842531,-150.0,0.00030137,2]
[385719714,1757989842540,-150.0,0.00030173,5]
[385719715,1757989842550,-169.0,0.00030205,14]
[385719716,1757989842565,-168.0,0.00030216,2]
[385719717,1757989842578,-500.0,0.0003025,7]
[385719718,1757989842587,-1094.0,0.00030288,2]
[385719719,1757989842597,-500.0,0.00030288,2]
[385719720,1757989842607,-179.24,0.00030362,120]
[385719721,1757989842616,-159.17,0.00030364,2]
[385719722,1757989842625,-161.09801239,0.00030365,2]
[385719723,1757989842637,-492.25338217,0.00030369,2]
[385719724,1757989842646,-152.18955174,0.00030389,2]
[385719725,1757989842656,-256.10128232,0.00030389,2]
[385719726,1757989842665,-8882.6885148,0.00030389,2]
[385719727,1757989842674,-1000.0,0.00030389,2]
[385719728,1757989842685,-257.91778498,0.00030389,2]
[385719729,1757989842694,-515.49682776,0.00030389,2]
[385719730,1757989842703,-1000.0,0.00030389,2]
[385719731,1757989842713,-261.23060996,0.00030389,2]
[385719732,1757989842723,-1000.0,0.00030389,2]
[385719734,1757989842733,-1000.0,0.00030389,2]
[385719735,1757989842744,-1000.0,0.00030389,2]
[385719736,1757989842754,-3007.82875494,0.00030389,2]
[385719737,1757989842763,-1000.0,0.00030389,2]
[385719738,1757989842774,-993.36592964,0.00030389,2]
[385719739,1757989842784,-175.71006843,0.00030389,2]
[385719740,1757989842794,-160.0,0.00030389,2]
[385719741,1757989842803,-162.95249999,0.00030389,2]
[385719742,1757989842813,-322.6107,0.00030389,2]
[385719743,1757989842823,-670.58624095,0.00030389,2]
[385719744,1757989842833,-1000.0,0.00030389,2]
[385719745,1757989842842,-250.0,0.00030389,2]
[385719746,1757989842852,-263.46271016,0.00030389,2]
[385719747,1757989842862,-250.0,0.00030389,2]
[385719748,1757989842872,-250.0,0.00030389,2]
[385719749,1757989842883,-533.44738639,0.00030389,2]
[385719750,1757989842896,-250.0,0.00030389,2]
[385719751,1757989842905,-514.10789647,0.00030389,2]
[385719752,1757989842915,-250.0,0.00030389,2]
[385719753,1757989842927,-250.0,0.00030389,2]
[385719754,1757989842937,-250.0,0.00030389,2]
[385719755,1757989842946,-250.0,0.00030389,2]
[385719756,1757989842955,-250.0,0.00030389,2]
[385719757,1757989842966,-250.0,0.00030389,2]
[385719758,1757989842976,-250.0,0.00030389,2]
[385719759,1757989842985,-250.0,0.00030389,2]
[385719760,1757989842995,-250.0,0.00030389,2]
[385719761,1757989843005,-1701.28067309,0.000304,2]
[385719762,1757989843014,-268.0,0.00030411,14]
[385719763,1757989843023,-1000.0,0.00030421,5]
[385719764,1757989843032,-1000.0,0.00030421,5]
[385719765,1757989843042,-1070.58053139,0.00030421,5]
[385719766,1757989843051,-670.12323021,0.00030421,5]
[385719767,1757989843060,-994.49492174,0.00030421,5]
[385719768,1757989843069,-9211.34798985,0.00030444,2]
[385719769,1757989843078,-150.0,0.00030449,5]
[385719770,1757989843087,-262.05753752,0.00030449,5]
[385719771,1757989843097,-500.0,0.00030471,7]
[385719772,1757989843106,-840.0,0.00030498,7]
[385719773,1757989843115,-9552.16786547,0.00030499,2]
[385719774,1757989843124,-1000.0,0.00030521,5]
[385719775,1757989843133,-485.7741385,0.00030521,5]
[385719776,1757989843142,-1000.0,0.00030521,5]
[385719777,1757989843151,-250.0,0.00030521,5]
[385719778,1757989843160,-150.0,0.00030539,5]
[385719779,1757989843169,-9905.5980765,0.00030554,2]
[385719780,1757989843178,-1094.0,0.00030562,2]
[385719781,1757989843187,-151.99983456,0.00030562,2]
[385719782,1757989843197,-561.32805303,0.00030568,5]
[385719783,1757989843206,-279.0,0.00030576,2]
[385719784,1757989843215,-10272.10520533,0.00030609,2]
[385719785,1757989843225,-500.0,0.00030651,7]
[385719786,1757989843234,-500.0,0.0003066,7]
[385719787,1757989843244,-10652.17309792,0.00030664,2]
[385719789,1757989843253,-168.0,0.00030682,2]
[385719790,1757989843262,-561.43,0.00030685,30]
[385719791,1757989843272,-500.0,0.00030695,5]
[385719792,1757989843281,-4409.79333942,0.00030719,2]
[385719793,1757989843291,-11046.30350255,0.00030719,2]
[385719794,1757989843300,-250.0,0.00030721,5]
[385719795,1757989843310,-500.0,0.00030731,7]
[385719796,1757989843319,-887.0,0.00030735,5]
[385719797,1757989843330,-1152.79748482,0.00030774,2]
[385719798,1757989843339,-160.0,0.00030785,2]
[385719799,1757989843348,-213.1401216,0.00030785,2]
[385719800,1757989843358,-515.95536276,0.00030785,2]
[385719801,1757989843368,-168.0,0.00030825,7]
[385719802,1757989843378,-1094.0,0.00030836,2]
[385719803,1757989843388,-4463.96621315,0.00030838,2]
[385719804,1757989843696,-500.0,0.00030865,7]
[385719805,1757989843705,-281.84,0.00030883,2]
[385719806,1757989843715,-1524.40124657,0.00030888,60]
[385719807,1757989843724,-308.21341443,0.00030899,10]
[385719808,1757989843733,-20000.0,0.000309,5]
[385719809,1757989843743,-157.9487585,0.000309,2]
[385719810,1757989843753,-157.94875848,0.000309,2]
[385719811,1757989843762,-157.94875848,0.000309,2]
[385719812,1757989843771,-1500.0,0.00030968,5]
[385719813,1757989843781,-1500.0,0.00030968,5]
[385719814,1757989843790,-920.25008,0.0003099,2]
[385719815,1757989843800,-500.0,0.00030995,7]
[385719816,1757989843809,-334.90815152,0.00031,5]
[385719817,1757989843818,-166.0,0.00031,120]
[385719818,1757989843828,-157.0,0.00031,120]
[385719819,1757989843837,-500.0,0.00031009,7]
[385719820,1757989843846,-500.0,0.00031026,7]
[385719821,1757989843855,-1500.0,0.00031068,5]
[385719822,1757989843864,-1500.0,0.00031068,5]
[385719823,1757989843874,-388.21228425,0.00031068,5]
[385719824,1757989843883,-156.809496,0.00031102,2]
[385719825,1757989843892,-1094.0,0.0003111,2]
[385719826,1757989843905,-804.21,0.00031123,2]
[385719827,1757989843914,-472.0,0.00031123,2]
[385719828,1757989843923,-804.21,0.00031123,2]
[385719829,1757989843933,-804.41,0.00031123,2]
[385719830,1757989843943,-311.67281295,0.00031268,5]
[385719831,1757989843953,-500.0,0.00031276,7]
[385719832,1757989843964,-500.0,0.00031307,7]
[385719833,1757989843975,-1094.0,0.00031384,2]
[385719834,1757989843988,-500.0,0.00031427,7]
[385719835,1757989843998,-4000.0,0.00031429,4]
[385719836,1757989844007,-500.0,0.00031474,7]
[385719837,1757989844019,-279.0,0.00031474,7]
[385719838,1757989844030,-500.0,0.00031505,7]
[385719839,1757989844041,-2000.0,0.00031516,5]
[385719840,1757989844052,-491.0139279,0.00031516,5]
[385719841,1757989844062,-750.0,0.00031516,5]
[385719842,1757989844071,-1217.64375847,0.00031616,5]
[385719843,1757989844080,-1516.21375544,0.00031616,5]
[385719844,1757989844089,-500.0,0.0003163,7]
[385719845,1757989844098,-268.0,0.00031644,14]
[385719846,1757989844107,-278.0,0.00031651,7]
[385719847,1757989844117,-3540.9171218,0.00031651,2]
[385719848,1757989844126,-1094.0,0.00031658,2]
[385719849,1757989844135,-4409.79333942,0.00031678,2]
[385719850,1757989844144,-500.0,0.00031728,7]
[385719851,1757989844153,-267.46074303,0.00031758,2]
[385719852,1757989844163,-160.0,0.00031758,2]
[385719853,1757989844172,-424.92874719,0.00031758,2]
[385719854,1757989844181,-500.0,0.00031771,7]
[385719855,1757989844190,-4463.96621315,0.00031774,2]
[385719856,1757989844199,-278.0,0.000318,7]
[385719857,1757989844208,-278.0,0.00031832,2]
[385719858,1757989844217,-279.0,0.00031853,2]
[385719859,1757989844227,-500.0,0.00031863,7]
[385719860,1757989844236,-20000.0,0.000319,5]
[385719861,1757989844245,-500.0,0.00031901,7]
[385719862,1757989844254,-1094.0,0.00031932,2]
[385719863,1757989844263,-171.05,0.00031945,2]
[385719864,1757989844272,-1219.49,0.00031945,2]
[385719865,1757989844282,-1099.89,0.00031945,2]
[385719866,1757989844291,-179.72,0.00031945,2]
[385719867,1757989844300,-278.0,0.00031961,7]
[385719868,1757989844310,-200.0,0.00032,120]
[385719869,1757989844319,-500.0,0.00032029,7]
[385719870,1757989844329,-150.0,0.0003203,7]
[385719871,1757989844338,-150.0,0.0003203,7]
[385719872,1757989844347,-150.0,0.0003203,7]
[385719873,1757989844356,-150.0,0.0003203,7]
[385719874,1757989844365,-150.0,0.0003203,7]
[385719875,1757989844374,-154.79531129,0.0003203,7]
[385719876,1757989844384,-150.0,0.0003203,7]
[385719877,1757989844393,-150.0,0.0003203,7]
[385719878,1757989844402,-153.86603597,0.0003203,7]
[385719879,1757989844411,-150.0,0.0003203,7]
[385719880,1757989844420,-150.0,0.0003203,7]
[385719881,1757989844430,-269.26853002,0.0003203,7]
[385719882,1757989844439,-278.0,0.00032052,2]
[385719883,1757989844447,-157.94875848,0.00032062,2]
[385719884,1757989844457,-1874.2300115,0.00032064,5]